bitfinex/quotes_ETHUSD_20250903
["timestamp","ask_amount","ask_price","bid_price","bid_amount"]
[1756884887028,4.077,4307.9,4307.8,0.4793]
[1756884887631,4.077,4307.9,4307.8,0.75978199]
[1756884888517,4.076,4307.9,4307.8,0.75978199]
[1756884888888,4.076,4307.9,4307.8,0.026]
[1756884894198,4.0752,4307.9,4307.8,0.026]
[1756884894784,4.5254,4307.9,4307.8,0.026]
[1756884895726,4.0752,4307.9,4307.8,0.026]
[1756884896418,5.33751645,4307.9,4307.8,0.026]
[1756884896623,5.3085,4307.9,4307.8,0.026]
[1756884896785,4.831,4307.9,4307.8,0.026]
[1756884897724,4.5254,4307.9,4307.8,0.026]
[1756884898892,4.40981645,4307.9,4307.8,0.026]
[1756884899094,5.33751645,4307.9,4307.8,0.026]
[1756884899422,5.3085,4307.9,4307.8,0.026]
[1756884899627,7.62981665,4307.9,4307.8,0.026]
[1756884901198,10.62981665,4307.9,4307.8,0.026]
[1756884902626,3.1162,4307.9,4307.8,0.026]
[1756884902794,7.072,4307.9,4307.8,0.026]
[1756884902995,0.117,4307.9,4307.8,2.81387053]
[1756884903218,0.001,4307.9,4307.8,4.85821161]
[1756884904236,0.001,4307.9,4307.8,3.60587053]
[1756884906019,0.001,4307.9,4307.8,3.13937053]
[1756884906429,0.001,4307.9,4307.8,3.60587053]
[1756884908297,0.001,4307.9,4307.8,3.13937053]
[1756884909198,0.001,4307.9,4307.8,0.818]
[1756884909413,0.001,4307.9,4307.8,3.8607222]
[1756884911432,0.001,4307.9,4307.8,4.3272222]
[1756884912250,0.001,4307.9,4307.8,4.4432222]
[1756884912596,0.001,4307.9,4307.8,3.9767222]
[1756884912814,0.001,4307.9,4307.8,7.9287222]
[1756884913810,0.001,4307.9,4307.8,8.3952222]
[1756884914732,0.001,4307.9,4307.8,3.9767222]
[1756884914938,0.001,4307.9,4307.8,7.9277222]
[1756884915432,0.001,4307.9,4307.8,8.3942222]
[1756884915842,0.001,4307.9,4307.8,7.9277222]
[1756884916140,0.001,4307.9,4307.8,8.3942222]
[1756884918055,0.001,4307.9,4307.8,7.9277222]
[1756884918457,0.0002,4307.9,4307.8,7.9277222]
[1756884919626,0.0002,4307.9,4307.8,7.9267222]
[1756884920847,0.0002,4307.9,4307.8,3.9767222]
[1756884921139,0.0002,4307.9,4307.8,7.9267222]
[1756884922641,0.0002,4307.9,4307.8,8.3932222]
[1756884922849,0.0002,4307.9,4307.8,10.0292222]
[1756884925143,0.0002,4307.9,4307.8,24.5292222]
[1756884927462,0.0002,4307.9,4307.8,20.5792222]
[1756884927752,0.0002,4307.9,4307.8,24.5272222]
[1756884929544,0.0002,4307.9,4307.8,24.0607222]
[1756884929742,0.0002,4307.9,4307.8,24.0597222]
[1756884931170,0.3093,4307.9,4307.8,24.0597222]
[1756884931341,0.7546,4307.9,4307.8,24.0597222]
[1756884932253,0.7546,4307.9,4307.8,20.1127222]
[1756884932455,1.2165,4307.9,4307.8,20.1127222]
[1756884932628,1.2165,4307.9,4307.8,9.5587222]
[1756884934235,0.7546,4307.9,4307.8,9.5587222]
[1756884935561,0.0002,4307.9,4307.8,9.5587222]
[1756884936762,0.7546,4307.9,4307.8,9.5577222]
[1756884938132,0.0002,4307.9,4307.8,9.5577222]
[1756884941267,0.0002,4307.9,4307.8,10.0187222]
[1756884941473,0.0002,4307.9,4307.8,13.0187222]
[1756884941862,0.0002,4307.9,4307.8,27.5187222]
[1756884943078,0.0004,4308.4,4308.3,3.11310113]
[1756884943275,0.0004,4308.4,4308.3,14.98359968]
[1756884943456,0.0004,4308.4,4308.3,15.09959968]
[1756884944981,0.0004,4308.4,4308.3,18.56059968]
[1756884945347,0.0004,4308.4,4308.3,33.06059968]
[1756884949585,0.001,4309.3,4309.2,3.11261635]
[1756884949886,0.001,4309.3,4309.2,19.07368683]
[1756884950073,0.4463,4309.9,4309.7,10.4964176]
[1756884950277,0.4463,4309.9,4309.7,14.4374176]
[1756884950587,0.001,4309.9,4309.7,14.5534176]
[1756884950771,0.4673,4309.8,4309.7,16.24080194]
[1756884951481,0.4673,4309.8,4309.7,14.89321079]
[1756884952083,0.022,4309.8,4309.7,14.89321079]
[1756884953682,0.022,4309.8,4309.7,29.39321079]
[1756884953984,0.4673,4309.8,4309.7,29.56721233]
[1756884954167,0.7764,4309.8,4309.7,29.56721233]
[1756884954684,0.7764,4309.8,4309.7,29.56621233]
[1756884955084,0.7764,4309.8,4309.7,25.62721233]
[1756884955390,0.7764,4309.8,4309.7,29.56621233]
[1756884955857,1.2383,4309.8,4309.7,25.62721233]
[1756884956065,1.2383,4309.8,4309.7,23.529733]
[1756884956854,1.2383,4309.8,4309.7,19.590733]
[1756884957081,1.2383,4309.8,4309.7,23.528733]
[1756884957674,1.2383,4309.8,4309.7,19.590733]
[1756884957866,1.2383,4309.8,4309.7,23.528733]
[1756884959303,1.2383,4309.8,4309.7,9.028733]
[1756884959799,1.2383,4309.8,4309.7,23.528733]
[1756884960158,1.2383,4309.8,4309.7,29.56521233]
[1756884960757,0.7764,4309.8,4309.7,29.56521233]
[1756884963291,0.022,4309.8,4309.7,29.56521233]
[1756884963899,0.4836,4309.8,4309.7,29.56521233]
[1756884964097,0.022,4309.8,4309.7,29.56521233]
[1756884967497,0.0212,4309.8,4309.7,29.56521233]
[1756884968158,0.0222,4309.8,4309.7,29.56521233]
[1756884971617,1e-08,4309.9,4309.8,3.11229328]
[1756884971786,1e-08,4309.9,4309.8,8.38020125]
[1756884971987,1e-08,4309.9,4309.8,8.83340125]
[1756884972211,1e-08,4309.9,4309.8,23.33340125]
[1756884974615,1e-08,4310.4,4310.3,3.792]
[1756884974819,1e-08,4310.4,4310.3,12.77887205]
[1756884975323,1e-08,4310.4,4310.3,27.73207205]
[1756884975812,1e-08,4310.4,4310.3,27.27887205]
[1756884976798,1e-08,4310.4,4310.3,27.73207205]
[1756884977920,1e-08,4310.4,4310.3,27.27887205]
[1756884978527,0.75760001,4310.4,4310.3,23.34587205]
[1756884978822,0.75760001,4310.4,4310.3,27.27787205]
[1756884979196,1.21050001,4310.4,4310.3,27.27787205]
[1756884979396,1.21050001,4310.4,4310.3,23.34587205]
[1756884979595,1.21050001,4310.4,4310.3,27.27787205]
[1756884980028,1.21050001,4310.4,4310.3,22.50302412]
[1756884980323,1.21050001,4310.4,4310.3,8.00302412]
[1756884980624,1.21050001,4310.4,4310.3,4.86302412]
[1756884980791,1.21050001,4310.4,4310.3,8.79502412]
[1756884982623,1.21050001,4310.4,4310.3,4.86302412]
[1756884982829,1.21050001,4310.4,4310.3,8.79502412]
[1756884983930,1.21050001,4310.4,4310.3,8.79402412]
[1756884985325,1.21050001,4310.4,4310.3,4.86302412]
[1756884985524,1.21050001,4310.4,4310.3,8.79402412]
[1756884985719,1.21050001,4310.4,4310.3,8.79802412]
[1756884987633,0.75760001,4310.4,4310.3,8.79802412]
[1756884987941,0.46160001,4310.4,4310.3,8.79802412]
[1756884988112,0.75760001,4310.4,4310.3,8.79802412]
[1756884988504,1e-08,4310.4,4310.3,8.79802412]
[1756884988732,0.46160001,4310.4,4310.3,23.29802412]
[1756884989305,0.75760001,4310.4,4310.3,23.29802412]
[1756884990536,1.22310001,4310.4,4310.3,23.29802412]
[1756884990718,1.22310001,4310.4,4310.3,19.36702412]
[1756884990920,1.22310001,4310.4,4310.3,23.29602412]
[1756884991326,1.22310001,4310.4,4310.3,8.79602412]
[1756884991929,1.22230001,4310.4,4310.3,8.79602412]
[1756884992531,1.22230001,4310.4,4310.3,4.86702412]
[1756884992734,0.75680001,4310.4,4310.3,8.79602412]
[1756884992935,0.001,4310.7,4310.6,3.11186266]
[1756884993126,0.001,4310.7,4310.6,7.04086266]
[1756884993435,0.3097,4310.7,4310.6,7.04086266]
[1756884993805,0.7752,4310.7,4310.6,7.04086266]
[1756884994006,1.2244,4310.7,4310.6,7.04086266]
[1756884994441,0.001,4310.7,4310.6,14.6903786]
[1756884994644,0.001,4310.7,4310.6,18.1588786]
[1756884994822,0.001,4310.7,4310.6,18.2748786]
[1756884995003,0.001,4310.7,4310.6,32.7748786]
[1756884995452,0.001,4310.7,4310.6,32.86783517]
[1756884996905,1e-08,4310.7,4310.6,32.86783517]
[1756884997106,1e-08,4310.7,4310.6,26.83135584]
[1756884997331,1e-08,4310.7,4310.6,38.9043145]
[1756884997906,1e-08,4310.7,4310.6,32.39833517]
[1756884999048,1e-08,4310.7,4310.6,38.4348145]
[1756884999218,1e-08,4310.7,4310.6,34.5068145]
[1756884999572,1e-08,4310.7,4310.6,32.39733517]
[1756885006654,1e-08,4310.7,4310.6,32.39533517]
[1756885008851,0.001,4311.2,4311.1,3.1115936]
[1756885009034,0.001,4311.2,4311.1,12.59392308]
[1756885009234,0.001,4311.2,4311.1,12.70992308]
[1756885009434,0.001,4311.2,4311.1,27.20992308]
[1756885010248,0.001,4311.2,4311.1,27.65912308]
[1756885010433,0.022,4311.8,4311.7,3.11127082]
[1756885010629,0.022,4311.8,4311.7,10.4255979]
[1756885010934,0.7799,4311.8,4311.7,10.5415979]
[1756885011262,1.2454,4311.8,4311.7,10.5415979]
[1756885011736,0.7799,4311.8,4311.7,10.5415979]
[1756885016273,0.7791,4311.8,4311.7,10.5415979]
[1756885018178,0.4704,4311.8,4311.7,10.5415979]
[1756885018377,0.7791,4311.8,4311.7,10.5415979]
[1756885020375,1.2367,4311.8,4311.7,10.5415979]
[1756885021682,1.2367,4311.8,4311.7,6.6175979]
[1756885021865,1.2367,4311.8,4311.7,9.35727082]
[1756885022344,1.2367,4311.8,4311.7,10.14927082]
[1756885023479,1.2377,4311.8,4311.7,10.14927082]
[1756885024183,0.7801,4311.8,4311.7,10.14927082]
[1756885026476,0.7801,4311.8,4311.7,10.03327082]
[1756885026477,0.0222,4311.8,4311.7,10.03327082]
[1756885026677,0.0222,4311.8,4311.7,12.0539569]
[1756885027053,1e-08,4311.8,4311.7,12.5411569]
[1756885028549,1e-08,4312.3,4312.2,3.1110019]
[1756885028783,1e-08,4312.3,4312.2,19.03201352]
[1756885029486,1e-08,4312.3,4312.2,19.20311711]
[1756885029779,1e-08,4312.3,4312.2,21.35533695]
[1756885029982,1e-08,4312.3,4312.2,22.27633695]
[1756885030188,0.8914,4313.3,4313.2,3.11046424]
[1756885030487,0.8914,4313.3,4313.2,8.66346424]
[1756885030691,1.1922,4313.3,4313.2,8.66346424]
[1756885031071,0.7346,4313.3,4313.2,23.16346424]
[1756885031254,0.7346,4313.3,4313.2,25.43137221]
[1756885031460,1.1922,4313.3,4313.2,23.16346424]
[1756885031970,0.7346,4313.3,4313.2,23.16346424]
[1756885032480,1.1922,4313.3,4313.2,23.16346424]
[1756885033176,0.02897072,4314.7,4313.7,2.31819551]
[1756885033384,0.02,4314.8,4313.7,6.23619551]
[1756885033700,0.7776,4313.8,4313.7,6.23619551]
[1756885033864,1.2114,4313.8,4313.7,6.23619551]
[1756885034994,1.2114,4313.8,4313.7,2.31819551]
[1756885035288,1.2114,4313.8,4313.7,6.23619551]
[1756885035594,1.2114,4313.8,4313.7,2.31819551]
[1756885035790,1.2114,4313.8,4313.7,6.23619551]
[1756885036587,1.2114,4313.8,4313.7,6.35219551]
[1756885038492,0.0192,4313.8,4313.7,8.01124506]
[1756885038698,0.0192,4313.8,4313.7,22.51124506]
[1756885040174,0.453,4313.8,4313.7,22.51124506]
[1756885040672,0.0192,4313.8,4313.7,22.51124506]
[1756885040872,1.2114,4313.8,4313.7,22.50924506]
[1756885041082,1.2114,4313.8,4313.7,21.64219551]
[1756885041280,1.2106,4313.8,4313.7,21.64219551]
[1756885041691,1.2106,4313.8,4313.7,7.14219551]
[1756885042086,1.2106,4313.8,4313.7,21.64219551]
[1756885042484,1.2116,4313.8,4313.7,21.64219551]
[1756885044608,1.2116,4313.8,4313.7,17.72619551]
[1756885044798,1.2116,4313.8,4313.7,21.64119551]
[1756885045304,1.2116,4313.8,4313.7,7.14119551]
[1756885045896,1.2116,4313.8,4313.7,21.64119551]
[1756885047893,1.2116,4313.8,4313.7,17.72619551]
[1756885048099,1.2116,4313.8,4313.7,21.64119551]
[1756885048771,1.2116,4313.8,4313.7,7.14019551]
[1756885049371,1.2116,4313.8,4313.7,21.64019551]
[1756885049995,0.754,4313.8,4313.7,21.64019551]
[1756885052296,0.0194,4313.8,4313.7,7.14019551]
[1756885052502,0.0194,4313.8,4313.7,8.15571958]
[1756885052927,0.001,4314.3,4314.2,13.47693846]
[1756885053219,0.001,4314.3,4314.2,7.74392684]
[1756885053418,0.001,4314.3,4314.2,11.77292684]
[1756885053784,0.4789,4314.8,4314.7,3.10965823]
[1756885053987,0.4789,4314.8,4314.7,7.13865823]
[1756885054506,0.02,4314.8,4314.7,7.13865823]
[1756885055770,0.02,4314.8,4314.7,7.60125823]
[1756885056007,0.02,4314.8,4314.7,8.5931578]
[1756885057005,0.02,4314.8,4314.7,8.76393598]
[1756885057311,0.02,4314.8,4314.7,9.23233598]
[1756885057496,0.02,4314.8,4314.7,23.73233598]
[1756885057819,0.02,4314.8,4314.7,23.26393598]
[1756885058203,0.02,4314.8,4314.7,22.80133598]
[1756885058377,0.7665,4314.8,4314.7,18.88833598]
[1756885058584,1.2291,4314.8,4314.7,22.80033598]
[1756885058779,0.02,4314.8,4314.7,22.80033598]
[1756885059309,0.7665,4314.8,4314.7,22.80033598]
[1756885059709,0.7665,4314.8,4314.7,18.88833598]
[1756885060019,0.7665,4314.8,4314.7,22.80033598]
[1756885060814,0.02,4314.8,4314.7,22.80033598]
[1756885061020,0.02,4314.8,4314.7,18.88833598]
[1756885061194,0.02,4314.8,4314.7,22.79933598]
[1756885061592,0.02,4314.8,4314.7,18.88833598]
[1756885061808,0.7665,4314.8,4314.7,18.88833598]
[1756885062163,1.2291,4314.8,4314.7,21.80743641]
[1756885062609,1.2291,4314.8,4314.7,17.89643641]
[1756885062815,1.2291,4314.8,4314.7,21.80743641]
[1756885063028,1.2291,4314.8,4314.7,17.72565823]
[1756885063229,1.2291,4314.8,4314.7,0.116]
[1756885063427,1.35201,4314.8,4314.7,3.911]
[1756885063730,1.35301,4314.8,4314.7,4.703]
[1756885064291,1.2301,4314.8,4314.7,4.703]
[1756885065285,1.2293,4314.8,4314.7,4.703]
[1756885065486,1.2293,4314.8,4314.7,4.702]
[1756885065903,0.0202,4314.8,4314.7,7.01965823]
[1756885066202,0.0202,4314.8,4314.7,14.50266985]
[1756885066406,0.0202,4314.8,4314.7,16.72276465]
[1756885066619,0.0202,4314.8,4314.7,9.35575303]
[1756885066796,0.0202,4314.8,4314.7,8.88735303]
[1756885067115,0.0202,4314.8,4314.7,11.88735303]
[1756885067421,0.0202,4314.8,4314.7,26.85575303]
[1756885067607,0.0202,4314.8,4314.7,26.84995303]
[1756885069806,0.0202,4314.8,4314.7,22.93995303]
[1756885070214,1.2293,4314.8,4314.7,26.38635303]
[1756885070515,0.4791,4314.8,4314.7,26.38635303]
[1756885070715,0.0202,4314.8,4314.7,26.38635303]
[1756885074520,0.0202,4314.8,4314.7,22.47735303]
[1756885074835,2.33653366,4316.8,4315.5,0.792]
[1756885074836,0.4626,4316.0,4315.5,0.792]
[1756885075023,0.4789,4315.8,4315.7,3.1091212]
[1756885075333,0.02,4315.8,4315.7,3.2251212]
[1756885075544,0.3076,4315.8,4315.7,3.2251212]
[1756885075700,0.7665,4315.8,4315.7,3.2251212]
[1756885077059,0.4789,4315.8,4315.7,3.2251212]
[1756885077261,0.02,4315.8,4315.7,7.33345618]
[1756885077744,0.4589,4316.3,4315.7,8.0297647]
[1756885077943,0.4826,4316.8,4316.7,3.10858442]
[1756885078149,0.4826,4316.8,4316.7,7.01658442]
[1756885078309,1.2291,4316.8,4316.7,7.01658442]
[1756885078643,1.2291,4316.8,4316.7,7.13258442]
[1756885080347,1.2291,4316.8,4316.7,4.816]
[1756885080655,1.2291,4316.8,4316.7,7.13258442]
[1756885080814,0.7364,4316.8,4316.7,7.13258442]
[1756885081942,0.7364,4316.8,4316.7,7.13158442]
[1756885082651,1.2269,4316.8,4316.7,7.13158442]
[1756885083253,0.7364,4316.8,4316.7,7.13158442]
[1756885083554,0.7364,4316.8,4316.7,21.63158442]
[1756885084117,0.7364,4316.8,4316.7,23.89949239]
[1756885084320,0.02,4316.8,4316.7,9.39949239]
[1756885084521,0.7364,4316.8,4316.7,9.39949239]
[1756885084720,0.4493,4316.8,4316.7,9.39949239]
[1756885085217,0.021,4316.8,4316.7,9.39949239]
[1756885085421,0.021,4316.8,4316.7,9.39849239]
[1756885086367,0.021,4316.8,4316.7,12.88049239]
[1756885086518,0.021,4316.8,4316.7,12.39849239]
[1756885086721,0.021,4316.8,4316.7,26.89849239]
[1756885087869,0.7374,4316.8,4316.7,19.20049239]
[1756885088021,1.2279,4316.8,4316.7,6.33758442]
[1756885088220,0.7374,4316.8,4316.7,7.12958442]
[1756885089429,0.021,4316.8,4316.7,7.12958442]
[1756885089628,0.7374,4316.8,4316.7,7.12958442]
[1756885089844,1.2271,4316.8,4316.7,7.12958442]
[1756885090477,1.2271,4316.8,4316.7,3.22458442]
[1756885090678,1.2271,4316.8,4316.7,7.12958442]
[1756885091776,1.2271,4316.8,4316.7,3.22458442]
[1756885091942,1.2271,4316.8,4316.7,2.43258442]
[1756885092138,1.2271,4316.8,4316.7,6.33758442]
[1756885092657,1.2271,4316.8,4316.7,7.12958442]
[1756885093245,1.2271,4316.8,4316.7,4.813]
[1756885093447,1.2271,4316.8,4316.7,4.812]
[1756885094393,1.2271,4316.8,4316.7,0.908]
[1756885094578,1.2271,4316.8,4316.7,4.696]
[1756885094579,7.97509376,4316.8,4316.7,4.696]
[1756885094781,7.25008524,4316.8,4316.7,4.696]
[1756885094967,7.25008524,4316.8,4316.7,0.792]
[1756885095285,7.25008524,4316.8,4316.7,4.696]
[1756885096949,1.2271,4316.8,4316.7,0.792]
[1756885097156,7.61603387,4316.8,4316.7,0.792]
[1756885097594,7.61603387,4316.8,4316.4,1.633]
[1756885097789,0.9487573,4316.7,4316.5,0.792]
[1756885097995,7.22988524,4316.6,4315.7,1.633]
[1756885098194,7.22988524,4316.6,4315.8,3.449]
[1756885098195,6.02298524,4316.2,4315.8,3.449]
[1756885098361,0.2871,4315.9,4315.8,3.449]
[1756885098561,1.2069,4315.9,4315.8,6.67403055]
[1756885098958,0.4905,4316.3,4316.2,3.10885278]
[1756885099158,0.7776,4316.3,4316.2,4.696]
[1756885099490,1.2069,4316.3,4316.2,7.01285278]
[1756885100608,0.2871,4316.3,4316.2,7.01285278]
[1756885100794,0.4905,4316.5,4316.3,0.792]
[1756885100988,6.76350376,4316.8,4316.5,0.792]
[1756885101190,6.76350376,4316.8,4316.7,0.792]
[1756885101488,7.97040376,4316.8,4316.7,0.792]
[1756885102318,7.97040376,4316.8,4316.6,0.792]
[1756885102621,6.94278524,4316.7,4316.6,0.792]
[1756885102816,7.05878524,4316.7,4316.6,0.792]
[1756885103020,7.34588524,4316.7,4316.6,0.792]
[1756885103219,7.34588524,4316.7,4316.4,0.792]
[1756885103385,6.42608524,4316.7,4316.4,4.695]
[1756885103589,0.9198,4316.6,4316.4,4.695]
[1756885103919,0.9198,4316.6,4316.5,0.792]
[1756885104117,6.66994186,4316.7,4316.5,0.792]
[1756885104277,0.2871,4316.6,4316.5,0.792]
[1756885104717,1.2069,4316.6,4316.5,0.792]
[1756885105220,1.2069,4316.6,4316.5,3.10869176]
[1756885105526,0.7164,4316.6,4316.5,3.10869176]
[1756885105829,0.7164,4316.6,4316.4,0.792]
[1756885105977,0.0202,4316.8,4316.5,7.01169176]
[1756885106178,0.0202,4316.8,4316.7,0.792]
[1756885106481,0.0202,4316.8,4316.7,7.01158442]
[1756885106688,0.3073,4316.8,4316.7,7.01158442]
[1756885107090,0.7366,4316.8,4316.7,4.695]
[1756885107690,0.7366,4316.8,4316.7,7.01158442]
[1756885109992,0.7366,4316.8,4316.7,4.695]
[1756885110178,0.7366,4316.8,4316.7,7.01158442]
[1756885110678,0.7366,4316.8,4316.7,4.695]
[1756885110885,0.7366,4316.8,4316.7,7.01158442]
[1756885112300,0.7366,4316.8,4316.7,4.695]
[1756885113624,1.1943,4316.8,4316.7,7.01158442]
[1756885114001,1.1943,4316.8,4316.7,4.695]
[1756885114343,1.1935,4316.8,4316.7,7.01158442]
[1756885114515,1.1935,4316.8,4316.7,4.695]
[1756885114716,1.1935,4316.8,4316.7,7.01158442]
[1756885114910,0.7358,4316.8,4316.7,7.01158442]
[1756885115116,0.7358,4316.8,4316.7,4.694]
[1756885115625,0.0194,4316.8,4316.7,7.01058442]
[1756885116323,0.0194,4316.8,4316.7,8.55673412]
[1756885116698,0.0194,4316.8,4316.7,8.09793412]
[1756885118700,0.0194,4316.8,4316.7,7.00958442]
[1756885124614,0.333,4316.8,4316.7,0.792]
[1756885124819,0.333,4316.8,4316.7,7.00958442]
[1756885124820,1.2457,4316.8,4316.7,7.00958442]
[1756885125021,1.2457,4316.8,4316.7,0.792]
[1756885125336,1.2457,4316.8,4316.7,7.00858442]
[1756885127238,1.2457,4316.8,4316.7,3.10858442]
[1756885127422,1.2457,4316.8,4316.7,7.00858442]
[1756885128606,0.0194,4316.8,4316.7,7.00858442]
[1756885129144,0.4744,4316.8,4316.7,7.00858442]
[1756885129744,0.788,4316.8,4316.7,7.00858442]
[1756885130542,1.2457,4316.8,4316.7,3.10858442]
[1756885130743,1.2457,4316.8,4316.7,7.00858442]
[1756885130945,0.0194,4316.8,4316.7,7.00858442]
[1756885132412,0.0194,4316.8,4316.7,7.00758442]
[1756885133560,0.0194,4316.8,4316.7,3.10858442]
[1756885133751,0.788,4316.8,4316.7,7.00758442]
[1756885134110,0.0194,4316.8,4316.7,3.10858442]
[1756885134315,0.0194,4316.8,4316.7,7.00758442]
[1756885137878,1.2457,4316.8,4316.7,7.00758442]
[1756885138257,1.2457,4316.8,4316.7,3.10858442]
[1756885138445,1.2457,4316.8,4316.7,7.00758442]
[1756885138652,1.2449,4316.8,4316.7,7.00658442]
[1756885139039,1.2449,4316.8,4316.7,4.69]
[1756885139240,1.2449,4316.8,4316.7,7.00658442]
[1756885139674,1.2449,4316.8,4316.7,4.69]
[1756885139972,1.2449,4316.8,4316.7,7.00658442]
[1756885140274,1.2449,4316.8,4316.6,0.004]
[1756885140275,1.38099,4316.8,4316.6,0.004]
[1756885140485,0.0289573,4316.7,4316.6,0.004]
[1756885140651,2.31663809,4316.6,4316.3,0.004]
[1756885140850,0.3118,4316.4,4315.6,1.108]
[1756885141050,0.9456,4316.3,4315.9,0.116]
[1756885141374,0.9456,4316.3,4316.0,3.898]
[1756885141375,0.4557,4316.2,4316.0,3.898]
[1756885141545,0.116,4316.4,4316.1,0.792]
[1756885141746,0.6059,4316.4,4316.1,4.69]
[1756885141941,0.3118,4316.2,4316.1,4.69]
[1756885142184,0.3118,4316.2,4316.1,7.00690646]
[1756885142185,1.2574,4316.2,4316.1,7.00690646]
[1756885142690,0.7675,4316.2,4316.1,7.00690646]
[1756885142987,0.7675,4316.2,4316.1,4.69]
[1756885142988,1.2574,4316.2,4316.1,4.69]
[1756885143172,1.2574,4316.2,4315.8,2.31702087]
[1756885143347,1.2574,4316.2,4315.9,7.0069995]
[1756885143348,0.9456,4316.1,4315.9,7.0069995]
[1756885143543,0.116,4316.4,4315.9,7.0069995]
[1756885143748,0.116,4316.4,4316.3,0.792]
[1756885143948,0.116,4316.4,4316.3,7.00679911]
[1756885144974,0.8835,4316.4,4316.3,7.00679911]
[1756885145877,0.5717,4316.4,4316.3,7.00679911]
[1756885146180,0.8835,4316.4,4316.3,3.10879911]
[1756885146349,0.8835,4316.4,4316.3,7.00679911]
[1756885146544,0.5717,4316.4,4316.3,7.00679911]
[1756885146750,1.3734,4316.4,4316.3,4.69]
[1756885146981,1.3734,4316.4,4316.3,4.694]
[1756885147150,1.3734,4316.4,4316.3,7.01079911]
[1756885147350,1.3734,4316.4,4316.3,4.694]
[1756885148273,1.3734,4316.4,4316.3,3.11279911]
[1756885148274,0.116,4316.4,4316.3,3.11279911]
[1756885148601,1.3734,4316.4,4316.3,4.694]
[1756885149170,1.51074,4316.4,4316.3,0.796]
[1756885149774,3.82748543,4316.4,4316.3,0.796]
[1756885149998,3.82748543,4316.4,4316.3,0.004]
[1756885150199,1.51074,4316.4,4316.3,0.004]
[1756885150380,3.82748543,4316.4,4316.3,0.004]
[1756885150770,3.85644474,4316.4,4316.3,0.004]
[1756885151399,1.51074,4316.4,4316.3,0.004]
[1756885152285,3.82748543,4316.4,4316.3,0.004]
[1756885152489,3.85644474,4316.4,4316.3,0.004]
[1756885153088,11.20759159,4316.4,4316.3,0.004]
[1756885153388,11.17863228,4316.4,4316.3,0.004]
[1756885154984,1.51074,4316.4,4316.3,0.004]
[1756885155418,3.82748543,4316.4,4316.3,0.004]
[1756885155630,3.85644474,4316.4,4316.3,0.004]
[1756885157426,3.82748543,4316.4,4316.3,0.004]
[1756885157627,1.51074,4316.4,4316.3,0.004]
[1756885157828,3.82748543,4316.4,4316.3,0.004]
[1756885158128,5.40774,4316.4,4316.3,0.004]
[1756885159299,0.56514,4316.4,4316.3,0.004]
[1756885159498,1.02084,4316.4,4316.3,0.004]
[1756885159925,1.51074,4316.4,4316.3,0.004]
[1756885161336,3.82748543,4316.4,4316.3,0.004]
[1756885161532,3.85644474,4316.4,4316.3,0.004]
[1756885161736,1.53969931,4316.4,4316.3,0.004]
[1756885161943,3.85644474,4316.4,4316.3,0.004]
[1756885162445,1.53969931,4316.4,4316.3,0.004]
[1756885163035,1.51074,4316.4,4316.3,0.004]
[1756885163236,1.53889931,4316.4,4316.3,0.004]
[1756885163441,4.91704,4316.4,4316.3,0.004]
[1756885163817,0.1152,4316.4,4316.3,0.004]
[1756885164019,0.1152,4316.4,4316.3,0.0113]
[1756885164213,0.1152,4316.4,4316.3,0.004]
[1756885165249,1.3726,4316.4,4316.3,0.004]
[1756885165439,1.40155931,4316.4,4316.3,0.004]
[1756885165754,2.2037709,4316.4,4316.3,0.004]
[1756885166853,1.7480709,4316.4,4316.3,0.004]
[1756885167053,1.3726,4316.4,4316.3,0.004]
[1756885167869,1.3736,4316.4,4316.3,0.004]
[1756885168968,1.40255931,4316.4,4316.3,0.004]
[1756885169156,0.8837,4316.4,4316.3,0.004]
[1756885170882,1.3728,4316.4,4316.3,0.004]
[1756885171066,0.428,4316.4,4316.3,0.004]
[1756885171267,0.1162,4316.4,4316.3,0.0113]
[1756885172382,0.1162,4316.4,4316.3,0.004]
[1756885175586,0.4223,4316.4,4316.3,0.004]
[1756885175794,0.8853,4316.4,4316.3,0.004]
[1756885176089,1.3744,4316.4,4316.3,0.004]
[1756885176290,0.8853,4316.4,4316.3,0.004]
[1756885176660,0.1162,4316.4,4316.3,0.8033]
[1756885177303,0.1162,4316.4,4316.3,4.00606819]
[1756885177605,0.1162,4316.4,4316.3,4.01056819]
[1756885177765,0.001,4316.4,4316.3,4.00606819]
[1756885178590,0.001,4316.4,4316.3,3.54426819]
[1756885179896,0.001,4316.4,4316.3,4.00606819]
[1756885180202,0.001,4316.4,4316.3,3.54426819]
[1756885180978,0.001,4316.4,4316.3,3.53696819]
[1756885181465,0.001,4316.4,4316.3,3.11279911]
[1756885181796,0.001,4316.4,4316.3,7.00779911]
[1756885182388,0.464,4316.4,4316.3,7.00779911]
[1756885182592,0.001,4316.4,4316.3,7.01509911]
[1756885183796,0.001,4316.4,4316.3,3.12009911]
[1756885184003,0.001,4316.4,4316.3,7.01409911]
[1756885184687,0.001,4316.4,4316.3,7.00679911]
[1756885185408,1.2592,4316.4,4316.3,3.11279911]
[1756885185771,0.7701,4316.4,4316.3,3.11279911]
[1756885185971,0.3071,4316.4,4316.3,3.11279911]
[1756885186224,0.001,4316.4,4316.3,7.00679911]
[1756885186501,0.001,4316.4,4316.3,8.16224551]
[1756885186677,0.001,4316.4,4316.3,7.70044551]
[1756885187598,0.0002,4316.4,4316.3,3.79914551]
[1756885187799,0.7693,4316.4,4316.3,0.796]
[1756885188122,1.2584,4316.4,4316.3,0.004]
[1756885190519,1.2584,4316.4,4316.3,0.796]
[1756885190724,0.0002,4316.4,4316.3,0.796]
[1756885191895,0.0002,4316.4,4316.3,7.01409911]